[Event "3rd FIDE WCCC Rapid U08 2019"]
[Site "Minsk"]
[Date "2019.08.17"]
[Round "8.4"]
[White "Rose, Noah"]
[Black "Gulenko, Zakhar"]
[Result "0-1"]
[ECO "C00"]
[WhiteElo "1589"]
[BlackElo "1496"]
[Annotator "NA"]
[PlyCount "99"]
[EventDate "2019.08.16"]
[EventType "swiss"]
[EventCountry "BLR"]
[SourceTitle "playchess.com"]
[Source "ChessBase"]
[SourceQuality "1"]
[TimeControl "600+5"]

1. e4 {[%emt 0:00:00]} e6 {[%emt 0:00:00]} 2. d4 {[%emt 0:00:00]} d5 {[%emt 0:00:00]} 3. Bd3 {[%emt 0:00:01]} dxe4 {[%emt 0:00:00]} 4. Bxe4 {[%emt 0:00:02]} Nf6 {[%emt 0:00:02]} 5. Bg5 {[%emt 0:00:35]} Be7 {[%emt 0:00:17]} 6. Bxf6 {[%emt 0:00:04]} Bxf6 {[%emt 0:00:03]} 7. Nf3 {[%emt 0:00:02]} Nc6 {[%emt 0:00:01]} 8. Bxc6+ {[%emt 0:00:06]} bxc6 {[%emt 0:00:03]} 9. O-O {[%emt 0:00:12]} Ba6 {[%emt 0:00:05]} 10. Re1 {[%emt 0:00:03]} c5 {[%emt 0:00:04]} 11. c3 {[%emt 0:00:14]} O-O {[%emt 0:00:58]} 12. dxc5 {[%emt 0:00:09]} Qe7 {[%emt 0:00:06]} 13. Nbd2 {[%emt 0:00:24]} Qxc5 {[%emt 0:00:14]} 14. Ne4 {[%emt 0:00:03]} Qe7 {[%emt 0:00:02]} 15. Qc2 {[%emt 0:00:16]} Bb7 {[%emt 0:00:39]} 16. Nxf6+ {[%emt 0:00:11]} Qxf6 {[%emt 0:00:03]} 17. Re3 {[%emt 0:00:13]} Rad8 {[%emt 0:00:40]} 18. Qe2 {[%emt 0:00:29]} Rd6 {[%emt 0:00:18]} 19. Qb5 {[%emt 0:00:27]} Ba6 {[%emt 0:00:37]} 20. Qh5 {[%emt 0:00:11]} h6 {[%emt 0:01:14]} 21. Ne5 {[%emt 0:00:17]} Rfd8 {[%emt 0:01:16]} 22. h3 {[%emt 0:00:14]} Bb7 {[%emt 0:00:35]} 23. Ng4 {[%emt 0:00:19]} Qf4 {[%emt 0:02:42]} 24. Rg3 {[%emt 0:00:27]} Kf8 {[%emt 0:00:28]} 25. Qe5 {[%emt 0:00:29]} Qxe5 {[%emt 0:00:07]} 26. Nxe5 {[%emt 0:00:03]} Rd1+ {[%emt 0:00:16]} 27. Rxd1 {[%emt 0:00:05]} Rxd1+ {[%emt 0:00:03]} 28. Kh2 {[%emt 0:00:02]} Rd2 {[%emt 0:00:05]} 29. Nc4 {[%emt 0:00:23]} Rxf2 {[%emt 0:00:05]} 30. Kg1 {[%emt 0:00:07]} Re2 {[%emt 0:00:12]} 31. Kf1 {[%emt 0:00:17]} Re4 {[%emt 0:00:03]} 32. Nd2 {[%emt 0:00:07]} Ba6+ {[%emt 0:00:07]} 33. Kg1 {[%emt 0:00:11]} Re2 {[%emt 0:00:02]} 34. Nb3 {[%emt 0:00:33]} Rxb2 {[%emt 0:00:04]} 35. Rf3 {[%emt 0:00:17]} Rxa2 {[%emt 0:00:07]} 36. Nc5 {[%emt 0:00:01]} Bc4 {[%emt 0:00:04]} 37. Rf4 {[%emt 0:00:26]} Bd5 {[%emt 0:00:01]} 38. g4 {[%emt 0:00:18]} Ra5 {[%emt 0:00:09]} 39. Nd3 {[%emt 0:00:11]} Ra1+ {[%emt 0:00:06]} 40. Kf2 {[%emt 0:00:02]} Rh1 {[%emt 0:00:14]} 41. c4 {[%emt 0:00:11]} Bb7 {[%emt 0:00:21]} 42. Rd4 {[%emt 0:00:18]} Rxh3 {[%emt 0:00:12]} 43. Nc5 {[%emt 0:00:01]} Bc6 {[%emt 0:00:06]} 44. Rf4 {[%emt 0:00:10]} Ke7 {[%emt 0:00:05]} 45. Na6 {[%emt 0:00:08]} Rh2+ {[%emt 0:00:04]} 46. Ke3 {[%emt 0:00:03]} Rh3+ {[%emt 0:00:06]} 47. Kd4 {[%emt 0:00:05]} f6 {[%emt 0:00:14]} 48. Nxc7 {[%emt 0:00:07]} e5+ {[%emt 0:00:02]} 49. Kc5 {[%emt 0:00:04]} exf4 {[%emt 0:00:02]} 50. Kd4 0-1

[Event "3rd FIDE WCCC Rapid U08 2019"]
[Site "Minsk"]
[Date "2019.08.17"]
[Round "8.5"]
[White "Karimli, Yusif"]
[Black "Samimi, Armin"]
[Result "1/2-1/2"]
[ECO "A06"]
[WhiteElo "1658"]
[BlackElo "1478"]
[Annotator "NA"]
[PlyCount "120"]
[EventDate "2019.08.16"]
[EventType "swiss"]
[EventCountry "BLR"]
[SourceTitle "playchess.com"]
[Source "ChessBase"]
[SourceQuality "1"]
[TimeControl "600+5"]

1. Nf3 {[%emt 0:00:00]} d5 {[%emt 0:00:00]} 2. g3 {[%emt 0:00:04]} Nf6 {[%emt 0:00:00]} 3. Bg2 {[%emt 0:00:06]} Bf5 {[%emt 0:00:00]} 4. O-O {[%emt 0:00:13]} c6 {[%emt 0:00:00]} 5. d4 {[%emt 0:00:11]} h6 {[%emt 0:00:02]} 6. c4 {[%emt 0:00:31]} e6 {[%emt 0:00:06]} 7. Nc3 {[%emt 0:00:42]} Be7 {[%emt 0:00:05]} 8. Bf4 {[%emt 0:00:50]} O-O {[%emt 0:00:02]} 9. Rc1 {[%emt 0:00:45]} Nbd7 {[%emt 0:00:56]} 10. Ne5 {[%emt 0:01:00]} Nb6 {[%emt 0:01:16]} 11. cxd5 {[%emt 0:00:32]} Nbxd5 {[%emt 0:00:11]} 12. Nxd5 {[%emt 0:01:21]} exd5 {[%emt 0:00:03]} 13. Qb3 {[%emt 0:02:10]} Qb6 {[%emt 0:00:36]} 14. Qxb6 {[%emt 0:00:32]} axb6 {[%emt 0:00:01]} 15. a3 {[%emt 0:00:15]} Ra4 {[%emt 0:00:18]} 16. Rcd1 {[%emt 0:00:06]} b5 {[%emt 0:00:17]} 17. f3 {[%emt 0:00:39]} Rfa8 {[%emt 0:00:06]} 18. Rfe1 {[%emt 0:00:16]} b4 {[%emt 0:00:30]} 19. axb4 {[%emt 0:00:21]} Rxb4 {[%emt 0:00:05]} 20. e4 {[%emt 0:00:21]} dxe4 {[%emt 0:00:02]} 21. fxe4 {[%emt 0:00:02]} Bg4 {[%emt 0:00:01]} 22. Nxg4 {[%emt 0:00:12]} Nxg4 {[%emt 0:00:03]} 23. Bc1 {[%emt 0:00:15]} Nf6 {[%emt 0:00:23]} 24. Kf1 {[%emt 0:00:18]} Raa4 {[%emt 0:00:33]} 25. d5 {[%emt 0:00:12]} cxd5 {[%emt 0:00:34]} 26. exd5 {[%emt 0:00:03]} Bd6 {[%emt 0:00:05]} 27. Rd3 {[%emt 0:00:08]} Rb5 {[%emt 0:00:53]} 28. Red1 {[%emt 0:00:06]} Ng4 {[%emt 0:00:48]} 29. b3 {[%emt 0:00:06]} Rab4 {[%emt 0:00:11]} 30. Ba3 {[%emt 0:00:05]} Nxh2+ {[%emt 0:02:12]} 31. Kg1 {[%emt 0:00:05]} Ng4 {[%emt 0:00:03]} 32. Bxb4 {[%emt 0:00:02]} Rxb4 {[%emt 0:00:02]} 33. Bf3 {[%emt 0:00:03]} Bc5+ {[%emt 0:01:14]} 34. Kg2 {[%emt 0:00:06]} Ne3+ {[%emt 0:00:03]} 35. Rxe3 {[%emt 0:00:00]} Bxe3 {[%emt 0:00:00]} 36. d6 {[%emt 0:00:00]} Bb6 {[%emt 0:00:01]} 37. d7 {[%emt 0:00:02]} Bd8 {[%emt 0:00:03]} 38. Re1 {[%emt 0:00:03]} Kh7 {[%emt 0:00:24]} 39. Re8 {[%emt 0:00:11]} Bf6 {[%emt 0:00:02]} 40. d8=Q {[%emt 0:00:06]} Bxd8 {[%emt 0:00:03]} 41. Rxd8 {[%emt 0:00:02]} Rxb3 {[%emt 0:00:02]} 42. Be4+ {[%emt 0:00:03]} g6 {[%emt 0:00:03]} 43. Rd7 {[%emt 0:00:05]} Kg8 {[%emt 0:00:06]} 44. Bxb7 {[%emt 0:00:08]} Rb2+ {[%emt 0:00:07]} 45. Kh3 {[%emt 0:00:06]} Rb6 {[%emt 0:00:07]} 46. Bd5 {[%emt 0:00:04]} Rf6 {[%emt 0:00:02]} 47. Rd8+ {[%emt 0:00:11]} Kg7 {[%emt 0:00:03]} 48. Kg2 {[%emt 0:00:07]} Rf5 {[%emt 0:00:06]} 49. Rd7 {[%emt 0:00:06]} g5 {[%emt 0:00:10]} 50. Bc4 {[%emt 0:00:07]} Rf6 {[%emt 0:00:09]} 51. Kh3 {[%emt 0:00:05]} Rf2 {[%emt 0:00:18]} 52. Kg4 {[%emt 0:00:07]} Kg6 {[%emt 0:00:16]} 53. Bd3+ {[%emt 0:00:07]} f5+ {[%emt 0:00:29]} 54. Bxf5+ {[%emt 0:00:05]} Rxf5 {[%emt 0:00:02]} 55. Rd6+ {[%emt 0:00:02]} Rf6 {[%emt 0:00:01]} 56. Rxf6+ {[%emt 0:00:03]} Kxf6 {[%emt 0:00:02]} 57. Kh5 {[%emt 0:00:04]} Kg7 {[%emt 0:00:09]} 58. g4 {[%emt 0:00:06]} Kf7 59. Kxh6 Kf6 60. Kh5 Ke5 1/2-1/2

[Event "3rd FIDE WCCC Rapid U08 2019"]
[Site "Minsk"]
[Date "2019.08.17"]
[Round "8.6"]
[White "Nguyen, Nghia Gia Binh"]
[Black "Egorov, Timofey Dm."]
[Result "1-0"]
[ECO "E21"]
[WhiteElo "1350"]
[BlackElo "1207"]
[Annotator "NA"]
[PlyCount "83"]
[EventDate "2019.08.16"]
[EventType "swiss"]
[EventCountry "BLR"]
[SourceTitle "playchess.com"]
[Source "ChessBase"]
[SourceQuality "1"]
[TimeControl "600+5"]

1. d4 {[%emt 0:00:00]} Nf6 {[%emt 0:00:00]} 2. c4 {[%emt 0:00:00]} e6 {[%emt 0:00:00]} 3. Nc3 {[%emt 0:00:00]} b6 {[%emt 0:00:10]} 4. Nf3 {[%emt 0:00:00]} Ba6 {[%emt 0:00:05]} 5. b3 {[%emt 0:00:04]} Bb4 {[%emt 0:00:04]} 6. Bd2 {[%emt 0:00:03]} d5 {[%emt 0:00:37]} 7. g3 {[%emt 0:00:10]} dxc4 {[%emt 0:00:34]} 8. bxc4 {[%emt 0:00:02]} Bxc4 {[%emt 0:00:07]} 9. Qa4+ {[%emt 0:00:01]} b5 {[%emt 0:00:14]} 10. Qxb4 {[%emt 0:00:04]} a5 {[%emt 0:00:20]} 11. Qb2 {[%emt 0:00:02]} O-O {[%emt 0:00:04]} 12. Bg2 {[%emt 0:00:01]} b4 {[%emt 0:00:08]} 13. Na4 {[%emt 0:00:06]} Bb5 {[%emt 0:00:24]} 14. Nc5 {[%emt 0:00:02]} Nbd7 {[%emt 0:00:01]} 15. Nxd7 {[%emt 0:00:03]} Qxd7 {[%emt 0:00:02]} 16. Ne5 {[%emt 0:00:01]} Qd6 {[%emt 0:00:23]} 17. Bxa8 {[%emt 0:00:04]} Rxa8 {[%emt 0:00:01]} 18. O-O {[%emt 0:00:03]} Qd5 {[%emt 0:00:07]} 19. Rfc1 {[%emt 0:00:07]} Nd7 {[%emt 0:00:02]} 20. Nxd7 {[%emt 0:00:03]} Bxd7 {[%emt 0:00:03]} 21. Rxc7 {[%emt 0:00:03]} Bc6 {[%emt 0:00:01]} 22. Rxc6 {[%emt 0:00:07]} Qxc6 {[%emt 0:00:01]} 23. Rc1 {[%emt 0:00:01]} Qd5 {[%emt 0:00:01]} 24. Qc2 {[%emt 0:00:01]} Rf8 {[%emt 0:00:04]} 25. Qc4 {[%emt 0:00:07]} Qd6 {[%emt 0:00:01]} 26. Qc5 {[%emt 0:00:01]} Qd7 {[%emt 0:00:04]} 27. Qxa5 {[%emt 0:00:03]} Qb7 {[%emt 0:00:06]} 28. Qxb4 {[%emt 0:00:03]} Qd5 {[%emt 0:00:04]} 29. a4 {[%emt 0:00:02]} h6 {[%emt 0:00:12]} 30. a5 {[%emt 0:00:01]} Ra8 {[%emt 0:00:06]} 31. Qc5 {[%emt 0:00:09]} Qd7 {[%emt 0:00:11]} 32. e3 {[%emt 0:00:07]} Qb7 {[%emt 0:00:13]} 33. Qc6 {[%emt 0:00:02]} Qb8 {[%emt 0:00:05]} 34. a6 {[%emt 0:00:02]} Qa7 {[%emt 0:00:06]} 35. Qb7 {[%emt 0:00:12]} Kh7 {[%emt 0:00:17]} 36. Rc8 {[%emt 0:00:11]} Rxc8 {[%emt 0:00:05]} 37. Qxa7 {[%emt 0:00:02]} Rc7 {[%emt 0:00:04]} 38. Qxc7 {[%emt 0:00:06]} f6 {[%emt 0:00:02]} 39. a7 {[%emt 0:00:02]} Kh8 {[%emt 0:00:02]} 40. a8=Q+ {[%emt 0:00:02]} Kh7 {[%emt 0:00:02]} 41. Qf8 {[%emt 0:00:03]} e5 {[%emt 0:00:04]} 42. Qcxg7# {[%emt 0:00:05]} 1-0

[Event "3rd FIDE WCCC Rapid U08 2019"]
[Site "Minsk"]
[Date "2019.08.17"]
[Round "9.1"]
[White "Yeganegi, Barad"]
[Black "Bayramli, Rafael"]
[Result "1/2-1/2"]
[ECO "D85"]
[WhiteElo "1612"]
[BlackElo "1514"]
[Annotator "NA"]
[PlyCount "204"]
[EventDate "2019.08.16"]
[EventType "swiss"]
[EventCountry "BLR"]
[SourceTitle "playchess.com"]
[Source "ChessBase"]
[SourceQuality "1"]
[TimeControl "600+5"]

1. d4 {[%emt 0:00:00]} Nf6 {[%emt 0:00:00]} 2. c4 {[%emt 0:00:00]} g6 {[%emt 0:00:00]} 3. Nc3 {[%emt 0:00:01]} d5 {[%emt 0:00:00]} 4. cxd5 {[%emt 0:00:02]} Nxd5 {[%emt 0:00:01]} 5. e4 {[%emt 0:00:01]} Nxc3 {[%emt 0:00:03]} 6. bxc3 {[%emt 0:00:02]} Bg7 {[%emt 0:00:02]} 7. Be3 {[%emt 0:00:05]} c5 {[%emt 0:00:02]} 8. Bc4 {[%emt 0:00:04]} Nc6 {[%emt 0:00:03]} 9. Ne2 {[%emt 0:00:02]} cxd4 {[%emt 0:00:02]} 10. cxd4 {[%emt 0:00:01]} b5 {[%emt 0:00:04]} 11. Bd5 {[%emt 0:00:22]} Bd7 {[%emt 0:00:02]} 12. O-O {[%emt 0:00:13]} O-O {[%emt 0:00:06]} 13. Rc1 {[%emt 0:00:11]} Rc8 {[%emt 0:00:04]} 14. Qd2 {[%emt 0:00:23]} e6 {[%emt 0:00:04]} 15. Bb3 {[%emt 0:00:04]} Qe7 {[%emt 0:00:47]} 16. Bg5 {[%emt 0:00:07]} Qd6 {[%emt 0:00:21]} 17. Be3 {[%emt 0:00:38]} Qb4 {[%emt 0:00:19]} 18. Qd3 {[%emt 0:00:14]} a6 {[%emt 0:00:36]} 19. Rfd1 {[%emt 0:00:54]} Rfd8 {[%emt 0:00:26]} 20. Bg5 {[%emt 0:00:48]} Re8 {[%emt 0:00:26]} 21. Bf4 {[%emt 0:00:49]} Na5 {[%emt 0:01:28]} 22. Bd2 {[%emt 0:00:52]} Qa3 {[%emt 0:00:03]} 23. Bxa5 {[%emt 0:00:41]} Qxa5 {[%emt 0:00:10]} 24. d5 {[%emt 0:00:25]} Rxc1 {[%emt 0:01:45]} 25. Rxc1 {[%emt 0:00:23]} Rc8 {[%emt 0:00:10]} 26. Rd1 {[%emt 0:00:09]} exd5 {[%emt 0:00:46]} 27. Bxd5 {[%emt 0:00:03]} Rd8 {[%emt 0:00:28]} 28. Qb3 {[%emt 0:00:13]} Be6 {[%emt 0:00:01]} 29. Nf4 {[%emt 0:00:35]} Bxd5 {[%emt 0:00:25]} 30. Nxd5 {[%emt 0:00:02]} Kh8 {[%emt 0:00:54]} 31. Rf1 {[%emt 0:00:37]} h5 {[%emt 0:00:26]} 32. Ne7 {[%emt 0:00:26]} Rf8 {[%emt 0:00:13]} 33. Nd5 {[%emt 0:00:59]} Re8 {[%emt 0:00:27]} 34. f3 {[%emt 0:00:26]} Rc8 {[%emt 0:00:32]} 35. Kh1 {[%emt 0:00:17]} Qa4 {[%emt 0:00:18]} 36. Qb1 {[%emt 0:00:10]} Qc2 {[%emt 0:00:13]} 37. Qb3 {[%emt 0:00:33]} Qc4 {[%emt 0:00:13]} 38. Rd1 {[%emt 0:00:26]} Qe2 {[%emt 0:00:27]} 39. Nf4 {[%emt 0:00:36]} Qc4 {[%emt 0:00:07]} 40. Qa3 {[%emt 0:00:13]} b4 {[%emt 0:00:28]} 41. Qa4 {[%emt 0:00:06]} Kh7 {[%emt 0:00:16]} 42. h3 {[%emt 0:00:02]} Qc2 {[%emt 0:00:03]} 43. Qb3 {[%emt 0:00:07]} Qxb3 {[%emt 0:00:02]} 44. axb3 {[%emt 0:00:01]} Rc3 {[%emt 0:00:01]} 45. Rb1 {[%emt 0:00:01]} a5 {[%emt 0:00:10]} 46. Nd5 {[%emt 0:00:02]} Rd3 {[%emt 0:00:02]} 47. Kg1 {[%emt 0:00:02]} f5 {[%emt 0:00:05]} 48. Kf2 {[%emt 0:00:00]} fxe4 {[%emt 0:00:03]} 49. fxe4 {[%emt 0:00:00]} Bd4+ {[%emt 0:00:08]} 50. Ke2 {[%emt 0:00:01]} Rg3 {[%emt 0:00:01]} 51. Kf1 {[%emt 0:00:01]} Kg7 {[%emt 0:00:05]} 52. Rd1 {[%emt 0:00:08]} Bb2 {[%emt 0:00:07]} 53. Re1 {[%emt 0:00:22]} Rxb3 {[%emt 0:00:05]} 54. e5 {[%emt 0:00:01]} Bxe5 {[%emt 0:00:13]} 55. Rxe5 {[%emt 0:00:02]} a4 {[%emt 0:00:02]} 56. Re7+ {[%emt 0:00:01]} Kf8 {[%emt 0:00:02]} 57. Ra7 {[%emt 0:00:01]} a3 {[%emt 0:00:01]} 58. Nxb4 {[%emt 0:00:28]} Rxb4 {[%emt 0:00:04]} 59. Rxa3 {[%emt 0:00:01]} Kf7 {[%emt 0:00:02]} 60. Kf2 {[%emt 0:00:01]} Kf6 {[%emt 0:00:05]} 61. Kf3 {[%emt 0:00:01]} Rb6 {[%emt 0:00:05]} 62. Kg3 {[%emt 0:00:03]} g5 {[%emt 0:00:03]} 63. Kf3 {[%emt 0:00:01]} Rb5 {[%emt 0:00:04]} 64. Ra6+ {[%emt 0:00:02]} Kf5 {[%emt 0:00:00]} 65. g4+ {[%emt 0:00:09]} hxg4+ {[%emt 0:00:06]} 66. hxg4+ {[%emt 0:00:01]} Ke5 {[%emt 0:00:01]} 67. Ra3 {[%emt 0:00:02]} Rd5 {[%emt 0:00:05]} 68. Re3+ {[%emt 0:00:03]} Kf6 {[%emt 0:00:01]} 69. Rc3 {[%emt 0:00:01]} Ke5 {[%emt 0:00:06]} 70. Ke3 {[%emt 0:00:02]} Ra5 {[%emt 0:00:04]} 71. Rb3 {[%emt 0:00:02]} Ra4 {[%emt 0:00:02]} 72. Kf3 {[%emt 0:00:03]} Rf4+ {[%emt 0:00:02]} 73. Kg3 {[%emt 0:00:01]} Rd4 {[%emt 0:00:04]} 74. Re3+ {[%emt 0:00:02]} Re4 {[%emt 0:00:01]} 75. Rc3 {[%emt 0:00:02]} Rd4 {[%emt 0:00:03]} 76. Rc5+ {[%emt 0:00:04]} Rd5 {[%emt 0:00:00]} 77. Rc3 {[%emt 0:00:01]} Kd4 {[%emt 0:00:02]} 78. Rf3 {[%emt 0:00:02]} Ke4 {[%emt 0:00:03]} 79. Ra3 {[%emt 0:00:02]} Rd3+ {[%emt 0:00:04]} 80. Rxd3 {[%emt 0:00:01]} Kxd3 {[%emt 0:00:01]} 81. Kf3 {[%emt 0:00:24]} Kd4 {[%emt 0:00:02]} 82. Kf2 {[%emt 0:00:01]} Kd3 {[%emt 0:00:04]} 83. Kf3 {[%emt 0:00:01]} Kd4 {[%emt 0:00:01]} 84. Kf2 {[%emt 0:00:01]} Ke4 {[%emt 0:00:01]} 85. Kg3 {[%emt 0:00:05]} Ke3 {[%emt 0:00:01]} 86. Kh3 {[%emt 0:00:01]} Kf3 {[%emt 0:00:08]} 87. Kh2 {[%emt 0:00:01]} Kxg4 {[%emt 0:00:05]} 88. Kg2 {[%emt 0:00:01]} Kh4 {[%emt 0:00:06]} 89. Kh2 {[%emt 0:00:01]} Kg4 {[%emt 0:00:01]} 90. Kg2 {[%emt 0:00:01]} Kf4 {[%emt 0:00:00]} 91. Kf2 {[%emt 0:00:01]} g4 {[%emt 0:00:01]} 92. Kg2 {[%emt 0:00:01]} g3 {[%emt 0:00:01]} 93. Kg1 {[%emt 0:00:02]} Ke3 {[%emt 0:00:03]} 94. Kg2 {[%emt 0:00:02]} Kf4 {[%emt 0:00:01]} 95. Kg1 {[%emt 0:00:01]} Kg4 {[%emt 0:00:01]} 96. Kg2 {[%emt 0:00:01]} Kh4 {[%emt 0:00:00]} 97. Kg1 {[%emt 0:00:02]} Kh3 {[%emt 0:00:01]} 98. Kh1 {[%emt 0:00:01]} Kg4 {[%emt 0:00:01]} 99. Kg2 {[%emt 0:00:01]} Kf4 {[%emt 0:00:00]} 100. Kg1 {[%emt 0:00:03]} Kf3 {[%emt 0:00:01]} 101. Kf1 {[%emt 0:00:01]} g2+ {[%emt 0:00:01]} 102. Kg1 {[%emt 0:00:01]} Kg3 {[%emt 0:00:01]} 1/2-1/2

[Event "3rd FIDE WCCC Rapid U08 2019"]
[Site "Minsk"]
[Date "2019.08.17"]
[Round "9.2"]
[White "Gulenko, Zakhar"]
[Black "Bouska, Jiri"]
[Result "0-1"]
[ECO "A48"]
[WhiteElo "1496"]
[BlackElo "1505"]
[Annotator "NA"]
[PlyCount "110"]
[EventDate "2019.08.16"]
[EventType "swiss"]
[EventCountry "BLR"]
[SourceTitle "playchess.com"]
[Source "ChessBase"]
[SourceQuality "1"]
[TimeControl "600+5"]

1. d4 {[%emt 0:00:00]} Nf6 {[%emt 0:00:00]} 2. Bf4 {[%emt 0:00:03]} g6 {[%emt 0:00:02]} 3. Nf3 {[%emt 0:00:04]} Bg7 {[%emt 0:00:01]} 4. e3 {[%emt 0:00:05]} d6 {[%emt 0:00:07]} 5. Nbd2 {[%emt 0:00:09]} O-O {[%emt 0:00:06]} 6. h3 {[%emt 0:00:02]} Re8 {[%emt 0:00:07]} 7. Bd3 {[%emt 0:00:09]} Nbd7 {[%emt 0:00:02]} 8. Bg5 {[%emt 0:00:51]} h6 {[%emt 0:00:14]} 9. Bxf6 {[%emt 0:00:04]} Nxf6 {[%emt 0:00:06]} 10. O-O {[%emt 0:00:06]} e5 {[%emt 0:00:04]} 11. dxe5 {[%emt 0:00:13]} dxe5 {[%emt 0:00:02]} 12. e4 {[%emt 0:00:15]} b6 {[%emt 0:00:34]} 13. Nc4 {[%emt 0:00:23]} Bb7 {[%emt 0:00:22]} 14. Re1 {[%emt 0:00:19]} Nd7 {[%emt 0:00:30]} 15. Qe2 {[%emt 0:00:40]} Nc5 {[%emt 0:00:17]} 16. Rad1 {[%emt 0:00:53]} Qe7 {[%emt 0:00:03]} 17. Nfd2 {[%emt 0:00:53]} Rad8 {[%emt 0:00:31]} 18. Nb3 {[%emt 0:00:21]} Nxd3 {[%emt 0:00:09]} 19. cxd3 {[%emt 0:00:07]} c5 {[%emt 0:00:22]} 20. Ne3 {[%emt 0:00:32]} Qe6 {[%emt 0:01:11]} 21. Kh2 {[%emt 0:00:47]} f5 {[%emt 0:00:25]} 22. exf5 {[%emt 0:01:19]} gxf5 {[%emt 0:00:02]} 23. Qh5 {[%emt 0:00:49]} Rf8 {[%emt 0:00:02]} 24. Nc4 {[%emt 0:00:12]} Qc6 {[%emt 0:00:23]} 25. f3 {[%emt 0:01:04]} Qc7 {[%emt 0:00:06]} 26. Qg6 {[%emt 0:00:23]} e4+ {[%emt 0:00:03]} 27. Qg3 {[%emt 0:01:11]} f4 {[%emt 0:00:01]} 28. Qg4 {[%emt 0:00:07]} b5 {[%emt 0:00:11]} 29. Nca5 {[%emt 0:00:06]} Bc8 {[%emt 0:00:01]} 30. Qg6 {[%emt 0:00:04]} exf3 {[%emt 0:00:09]} 31. gxf3 {[%emt 0:00:02]} Qd7 {[%emt 0:00:14]} 32. Qh5 {[%emt 0:00:09]} Rf5 {[%emt 0:00:05]} 33. Qg4 {[%emt 0:00:02]} Qc7 {[%emt 0:00:07]} 34. Rg1 {[%emt 0:00:04]} Rg5 {[%emt 0:00:07]} 35. Qh4 {[%emt 0:00:02]} Qd7 {[%emt 0:00:15]} 36. Nxc5 {[%emt 0:00:06]} Rxc5 {[%emt 0:00:03]} 37. Rg2 {[%emt 0:00:18]} Kh7 {[%emt 0:00:29]} 38. Rdg1 {[%emt 0:00:02]} Bh8 {[%emt 0:00:22]} 39. b4 {[%emt 0:00:03]} Rd5 {[%emt 0:00:10]} 40. Nb3 {[%emt 0:00:10]} Bf6 {[%emt 0:00:08]} 41. Qg4 {[%emt 0:00:04]} Qe8 {[%emt 0:00:26]} 42. Qg6+ {[%emt 0:00:03]} Qxg6 {[%emt 0:00:04]} 43. Rxg6 {[%emt 0:00:03]} Bh4 {[%emt 0:00:12]} 44. Rg7+ {[%emt 0:00:06]} Kh8 {[%emt 0:00:01]} 45. R7g6 {[%emt 0:00:11]} Bg3+ {[%emt 0:00:01]} 46. Kh1 {[%emt 0:00:04]} Kh7 {[%emt 0:00:02]} 47. Ra6 {[%emt 0:00:02]} Bxa6 {[%emt 0:00:02]} 48. Nc5 {[%emt 0:00:04]} Bf2 {[%emt 0:00:06]} 49. Nxa6 {[%emt 0:00:02]} Bxg1 {[%emt 0:00:01]} 50. Kxg1 {[%emt 0:00:02]} Rxd3 {[%emt 0:00:02]} 51. Nc7 {[%emt 0:00:01]} Rxf3 {[%emt 0:00:04]} 52. Ne6 {[%emt 0:00:02]} Rg3+ {[%emt 0:00:04]} 53. Kf2 {[%emt 0:00:01]} Rd2+ {[%emt 0:00:01]} 54. Ke1 {[%emt 0:00:02]} Rxa2 {[%emt 0:00:03]} 55. Nxf4 {[%emt 0:00:02]} Rg1# {[%emt 0:00:01]} 0-1

[Event "3rd FIDE WCCC Rapid U08 2019"]
[Site "Minsk"]
[Date "2019.08.17"]
[Round "9.3"]
[White "Nguyen, Nghia Gia Binh"]
[Black "Saulin, Grigoriy"]
[Result "1-0"]
[ECO "A56"]
[WhiteElo "1350"]
[BlackElo "1117"]
[Annotator "NA"]
[PlyCount "75"]
[EventDate "2019.08.16"]
[EventType "swiss"]
[EventCountry "BLR"]
[SourceTitle "playchess.com"]
[Source "ChessBase"]
[SourceQuality "1"]
[TimeControl "600+5"]

1. d4 {[%emt 0:00:00]} Nf6 {[%emt 0:00:00]} 2. c4 {[%emt 0:00:00]} c5 {[%emt 0:00:00]} 3. d5 {[%emt 0:00:01]} e5 {[%emt 0:00:00]} 4. Nc3 {[%emt 0:00:02]} d6 {[%emt 0:00:00]} 5. e4 {[%emt 0:00:02]} Nbd7 {[%emt 0:00:01]} 6. Nf3 {[%emt 0:00:01]} Be7 {[%emt 0:00:01]} 7. Be3 {[%emt 0:00:02]} O-O {[%emt 0:00:04]} 8. h3 {[%emt 0:00:03]} a6 {[%emt 0:00:03]} 9. Bd3 {[%emt 0:00:03]} h6 {[%emt 0:00:10]} 10. O-O {[%emt 0:00:02]} Nh7 {[%emt 0:00:01]} 11. Qd2 {[%emt 0:00:01]} Re8 {[%emt 0:00:31]} 12. Ne2 {[%emt 0:00:03]} Ndf8 {[%emt 0:00:02]} 13. Ng3 {[%emt 0:00:02]} Ng6 {[%emt 0:00:03]} 14. Nh5 {[%emt 0:00:11]} Ng5 {[%emt 0:00:14]} 15. Nxg5 {[%emt 0:00:02]} Bxg5 {[%emt 0:00:02]} 16. Bxg5 {[%emt 0:00:03]} hxg5 {[%emt 0:00:01]} 17. Rad1 {[%emt 0:00:06]} Nf4 {[%emt 0:00:03]} 18. Nxf4 {[%emt 0:00:03]} gxf4 {[%emt 0:00:08]} 19. Qe2 {[%emt 0:00:02]} Bd7 {[%emt 0:00:15]} 20. Qh5 {[%emt 0:00:02]} b5 {[%emt 0:00:09]} 21. b3 {[%emt 0:00:02]} b4 {[%emt 0:00:28]} 22. Be2 {[%emt 0:00:04]} a5 {[%emt 0:00:07]} 23. Bg4 {[%emt 0:00:01]} Bxg4 {[%emt 0:00:10]} 24. Qxg4 {[%emt 0:00:02]} a4 {[%emt 0:00:05]} 25. Kh2 {[%emt 0:00:03]} axb3 {[%emt 0:00:12]} 26. axb3 {[%emt 0:00:02]} Ra3 {[%emt 0:00:06]} 27. Rd3 {[%emt 0:00:01]} Qf6 {[%emt 0:00:22]} 28. Rf3 {[%emt 0:00:10]} Qh6 {[%emt 0:01:41]} 29. g3 {[%emt 0:00:05]} Rea8 {[%emt 0:00:26]} 30. gxf4 {[%emt 0:00:13]} exf4 {[%emt 0:00:01]} 31. Rg1 {[%emt 0:00:10]} Re8 {[%emt 0:00:19]} 32. Qf5 {[%emt 0:00:09]} Re5 {[%emt 0:00:39]} 33. Qg4 {[%emt 0:00:12]} Rxe4 {[%emt 0:00:09]} 34. Qc8+ {[%emt 0:00:01]} Kh7 {[%emt 0:00:40]} 35. Qf5+ {[%emt 0:00:02]} Kh8 {[%emt 0:00:38]} 36. Qxe4 {[%emt 0:00:02]} Qh5 {[%emt 0:00:24]} 37. Rxf4 {[%emt 0:00:04]} Rxb3 {[%emt 0:00:05]} 38. Rh4 {[%emt 0:00:01]} 1-0